fUSD/lending_fUSD_20260422
["ID","MTS","AMOUNT","RATE_DAILY","PERIOD"]
[420986029,1776857442777,-379.0,0.0001025,2]
[420986030,1776857442787,-500.0,0.00010252,2]
[420986031,1776857442796,-151.0,0.00010252,2]
[420986032,1776857442805,-268.43,0.00010306,2]
[420986033,1776857442814,-500.0,0.00010307,2]
[420986034,1776857442823,-151.0,0.00010307,2]
[420986035,1776857442832,-500.0,0.00010362,2]
[420986036,1776857442841,-151.0,0.00010362,2]
[420986037,1776857442850,-160.0,0.00010407,2]
[420986038,1776857442860,-151.0,0.00010417,2]
[420986039,1776857442868,-181.08010149,0.0001058,2]
[420986040,1776857442878,-217.15233878,0.0001058,2]
[420986041,1776857442887,-268.43,0.0001058,2]
[420986042,1776857442896,-150.0,0.00010632,3]
[420986043,1776857442906,-161.51,0.00010682,2]
[420986044,1776857442915,-255.0,0.00010706,2]
[420986045,1776857442925,-5000.0,0.00010706,2]
[420986046,1776857442934,-500.0,0.00010779,2]
[420986047,1776857442943,-500.0,0.00010779,2]
[420986048,1776857442952,-193.62818797,0.00010779,2]
[420986049,1776857442961,-150.0,0.000108,2]
[420986050,1776857442970,-150.1208185,0.000108,2]
[420986051,1776857442980,-150.0,0.000108,2]
[420986052,1776857442989,-150.0,0.000108,2]
[420986053,1776857442998,-150.0,0.000108,2]
[420986054,1776857443008,-150.0,0.000108,2]
[420986055,1776857443017,-150.0,0.000108,2]
[420986056,1776857443026,-150.00000001,0.000108,2]
[420986057,1776857443035,-150.0,0.000108,2]
[420986058,1776857443044,-150.0,0.000108,2]
[420986059,1776857443054,-150.0,0.000108,2]
[420986060,1776857443064,-268.43,0.00010854,2]
[420986061,1776857443073,-150.0,0.00010892,2]
[420986062,1776857443082,-150.0,0.00010909,2]
[420986063,1776857443092,-150.0,0.0001092,2]
[420986064,1776857443101,-150.0,0.00010959,2]
[420986065,1776857443110,-150.0,0.00010959,2]
[420986066,1776857443119,-150.0,0.00010971,2]
[420986067,1776857443128,-150.0,0.00010971,2]
[420986068,1776857443138,-24626.2980588,0.0001098,2]
[420986069,1776857443147,-150.0,0.00010985,2]
[420986070,1776857443156,-2000.0,0.00011,2]
[420986071,1776857443166,-2913.982,0.00011,2]
[420986072,1776857443175,-188.679,0.00011,2]
[420986073,1776857443184,-150.0,0.00011018,2]
[420986074,1776857443193,-150.0,0.0001104,2]
[420986075,1776857443203,-150.164,0.00011053,2]
[420986076,1776857443212,-1265.0,0.00011053,2]
[420986077,1776857443221,-927.0,0.00011053,2]
[420986078,1776857443231,-1229.979,0.00011053,2]
[420986079,1776857443240,-2474.0,0.00011053,2]
[420986080,1776857443249,-1048.659,0.00011053,2]
[420986081,1776857443258,-150.0,0.00011077,2]
[420986082,1776857443267,-157.41476314,0.00011099,2]
[420986083,1776857443275,-157.41476309,0.00011099,2]
[420986084,1776857443284,-157.41476309,0.00011099,2]
[420986085,1776857443293,-157.41476309,0.00011099,2]
[420986086,1776857443302,-500.0,0.00011118,2]
[420986087,1776857443311,-500.0,0.00011118,2]
[420986088,1776857443320,-500.0,0.00011118,2]
[420986089,1776857443329,-500.0,0.00011118,2]
[420986090,1776857443338,-633.10125202,0.00011118,2]
[420986091,1776857443347,-500.0,0.00011118,2]
[420986092,1776857443355,-500.0,0.00011118,2]
[420986093,1776857443364,-500.0,0.00011118,2]
[420986094,1776857443373,-37976.81594175,0.00011119,2]
[420986095,1776857443382,-150.0,0.00011127,2]
[420986096,1776857443391,-187.78006525,0.00011128,2]
[420986097,1776857443400,-216.60931015,0.00011128,2]
[420986098,1776857443410,-268.47602956,0.00011128,2]
[420986099,1776857443419,-150.0,0.00011143,2]
[420986100,1776857443428,-150.0,0.00011143,2]
[420986101,1776857443438,-150.0,0.0001116,2]
[420986102,1776857443447,-150.0,0.00011169,2]
[420986103,1776857443456,-150.0,0.000112,2]
[420986104,1776857443465,-390.0,0.00011236,2]
[420986105,1776857443474,-150.0,0.00011236,2]
[420986106,1776857443484,-410.0,0.0001124,2]
[420986107,1776857443493,-161.51,0.00011245,2]
[420986108,1776857443502,-5494.8698297,0.00011258,2]
[420986109,1776857443511,-150.0,0.00011262,2]
[420986110,1776857443521,-410.0,0.00011262,2]
[420986111,1776857443531,-410.0,0.00011263,2]
[420986112,1776857443542,-150.0,0.00011263,3]
[420986113,1776857443552,-410.0,0.00011267,2]
[420986114,1776857443566,-160.0,0.0001127,2]
[420986115,1776857443577,-597.04521,0.0001127,2]
[420986116,1776857443587,-1034.09042,0.0001127,2]
[420986117,1776857443596,-160.0,0.0001127,2]
[420986118,1776857443605,-550.081969,0.0001127,2]
[420986119,1776857443614,-940.163939,0.0001127,2]
[420986120,1776857443624,-160.0,0.0001127,2]
[420986121,1776857443633,-476.546728,0.0001127,2]
[420986122,1776857443643,-793.093457,0.0001127,2]
[420986123,1776857443652,-160.0,0.0001127,2]
[420986124,1776857443661,-180.679211,0.0001127,2]
[420986125,1776857443670,-201.358422,0.0001127,2]
[420986126,1776857443679,-150.0,0.0001128,2]
[420986127,1776857443689,-262.0,0.00011288,2]
[420986128,1776857443699,-5529.0,0.000113,3]
[420986129,1776857443708,-150.0,0.00011314,2]
[420986130,1776857443718,-150.0,0.00011314,2]
[420986131,1776857443727,-1427.19,0.00011314,2]
[420986132,1776857443736,-410.0,0.00011318,2]
[420986133,1776857443745,-410.0,0.0001133,2]
[420986134,1776857443755,-410.0,0.00011337,2]
[420986135,1776857443764,-151.0,0.00011337,2]
[420986136,1776857443773,-151.0,0.00011337,2]
[420986137,1776857443783,-151.0,0.00011337,2]
[420986138,1776857443792,-150.0,0.00011345,2]
[420986139,1776857443801,-410.0,0.00011351,2]
[420986140,1776857443810,-150.0,0.00011354,2]
[420986141,1776857443824,-410.0,0.00011358,2]
[420986142,1776857443836,-178.996965,0.00011368,2]
[420986143,1776857443852,-150.0,0.000114,2]
[420986144,1776857443861,-150.0,0.000114,2]
[420986145,1776857443871,-5529.0,0.000114,5]
[420986146,1776857443880,-410.0,0.00011426,2]
[420986147,1776857443890,-410.0,0.00011435,2]
[420986148,1776857443900,-150.0,0.00011446,2]
[420986149,1776857443909,-150.0,0.00011455,2]
[420986150,1776857443918,-398.0,0.00011479,2]
[420986151,1776857443927,-3045.81261703,0.00011481,2]
[420986152,1776857443936,-150.0,0.00011486,2]
[420986153,1776857443947,-150.0,0.00011486,2]
[420986154,1776857443956,-157.41476309,0.00011496,2]
[420986155,1776857443966,-1000.0,0.000115,2]
[420986156,1776857443975,-313.0,0.000115,2]
[420986157,1776857443984,-880.0,0.000115,2]
[420986158,1776857443994,-1000.0,0.00011509,2]
[420986159,1776857444003,-645.77,0.00011509,2]
[420986160,1776857444013,-150.0,0.0001152,2]
[420986161,1776857444022,-150.0,0.00011538,2]
[420986162,1776857444031,-150.0,0.00011564,2]
[420986163,1776857444041,-178.43473406,0.00011573,2]
[420986164,1776857444050,-151.0,0.00011597,2]
[420986165,1776857444060,-150.0,0.000116,2]
[420986166,1776857444069,-645.3265,0.000116,2]
[420986167,1776857444078,-645.3265,0.000116,2]
[420986168,1776857444087,-645.3265,0.0001161,2]
[420986169,1776857444096,-2000.0,0.00011621,2]
[420986170,1776857444106,-200.0,0.00011621,2]
[420986171,1776857444115,-150.0,0.00011631,2]
[420986172,1776857444126,-645.32651,0.0001164,2]
[420986173,1776857444135,-150.0,0.0001164,2]
[420986174,1776857444144,-747.00069715,0.00011654,2]
[420986175,1776857444154,-150.0,0.00011657,2]
[420986176,1776857444163,-150.0,0.00011657,2]
[420986177,1776857444172,-250.0,0.00011671,2]
[420986178,1776857444182,-250.0,0.00011671,2]
[420986179,1776857444191,-150.0,0.00011673,2]
[420986180,1776857444200,-194.72792766,0.00011676,2]
[420986181,1776857444209,-161.0,0.000117,2]
[420986182,1776857444222,-161.0,0.000117,2]
[420986183,1776857444231,-25000.0,0.00011709,2]
[420986184,1776857444241,-151.0,0.00011715,2]
[420986185,1776857444250,-151.0,0.00011715,2]
[420986186,1776857444259,-151.0,0.00011715,2]
[420986187,1776857444269,-151.0,0.00011715,2]
[420986188,1776857444278,-151.0,0.00011715,2]
[420986189,1776857444287,-151.0,0.00011715,2]
[420986190,1776857444296,-151.0,0.00011715,2]
[420986191,1776857444306,-151.0,0.00011715,2]
[420986192,1776857444316,-151.0,0.00011715,2]
[420986193,1776857444325,-151.0,0.00011715,2]
[420986194,1776857444335,-151.0,0.00011715,2]
[420986195,1776857444344,-151.0,0.00011715,2]
[420986196,1776857444353,-151.0,0.00011715,2]
[420986197,1776857444363,-151.0,0.00011715,2]
[420986198,1776857444372,-151.86797411,0.00011715,2]
[420986199,1776857444382,-645.32651,0.00011715,2]
[420986200,1776857444391,-645.3265,0.00011715,2]
[420986201,1776857444401,-4096.76940962,0.00011715,2]
[420986202,1776857444410,-150.0,0.00011723,2]
[420986203,1776857444420,-8500.0,0.0001175,2]
[420986204,1776857444428,-150.0,0.0001176,2]
[420986205,1776857444438,-433.0,0.00011777,2]
[420986206,1776857444448,-150.0,0.00011782,2]
[420986207,1776857444457,-161.51,0.00011807,2]
[420986208,1776857444467,-150.0,0.00011815,2]
[420986209,1776857444476,-247.0,0.00011816,5]
[420986210,1776857444486,-152.0,0.00011816,4]
[420986211,1776857444496,-150.0,0.00011829,2]
[420986212,1776857444505,-150.0,0.00011829,2]
[420986213,1776857444514,-814.152559,0.00011834,2]
[420986214,1776857444524,-750.111776,0.00011834,2]
[420986215,1776857444534,-649.836448,0.00011834,2]
[420986216,1776857444544,-246.380742,0.00011834,2]
[420986217,1776857444553,-1116.99999999,0.00011853,2]
[420986218,1776857444563,-5635.0,0.00011861,2]
[420986219,1776857444572,-150.0,0.0001188,2]
[420986220,1776857444582,-2000.0,0.00011884,2]
[420986221,1776857444592,-150.0,0.00011891,2]
[420986222,1776857444602,-150.0,0.00011895,3]
[420986223,1776857444612,-10000.24691356,0.000119,2]
[420986224,1776857444622,-5000.0,0.000119,2]
[420986225,1776857444633,-1922.7070149,0.000119,2]
[420986226,1776857444643,-157.41476309,0.000119,2]
[420986227,1776857444653,-163.96151357,0.000119,2]
[420986228,1776857444663,-10168.10267226,0.000119,2]
[420986229,1776857444672,-151.0,0.000119,2]
[420986230,1776857444682,-201.54379406,0.000119,2]
[420986231,1776857444692,-151.0,0.000119,2]
[420986232,1776857444702,-151.0,0.000119,2]
[420986233,1776857444712,-150.0,0.00011908,2]
[420986234,1776857444722,-151.0,0.0001197,2]
[420986235,1776857444732,-18806.0,0.00011973,2]
[420986236,1776857444741,-10237.0,0.00011973,2]
[420986237,1776857444751,-500.0,0.00011973,2]
[420986238,1776857444761,-500.27544818,0.00011973,2]
[420986239,1776857444771,-209.06331324,0.00011973,2]
[420986240,1776857444781,-171.91022536,0.00011973,2]
[420986241,1776857444791,-210.06361831,0.00011973,2]
[420986242,1776857444800,-160.1204543,0.00011973,2]
[420986243,1776857444809,-200.06059101,0.00011973,2]
[420986244,1776857444819,-312.24786116,0.00011973,2]
[420986245,1776857444828,-500.0,0.00011973,2]
[420986246,1776857444838,-137.804526,0.00011973,2]
[420986247,1776857444857,-362.195474,0.00011973,2]
[420986248,1776857444866,-158.058252,0.00011973,2]
[420986249,1776857444876,-158.058252,0.00011973,2]
[420986250,1776857444885,-152.0,0.00011978,5]
[420986251,1776857444896,-481.73,0.00011988,2]
[420986252,1776857444906,-352.19,0.00011988,2]
[420986253,1776857444915,-313.52,0.00011988,2]
[420986254,1776857444924,-421.31,0.00011988,2]
[420986255,1776857444934,-224.11,0.00011988,2]
[420986256,1776857444943,-235.17,0.00011988,2]
[420986257,1776857444952,-461.00366739,0.00011988,2]
[420986260,1776857445996,-945.486,0.00010842,2]
[420986261,1776857446006,-74.11633261,0.00011988,2]
[420986262,1776857446015,-448.36,0.00011988,2]
[420986263,1776857446025,-151.0,0.00011988,2]
[420986264,1776857446035,-254.60549407,0.0001199,2]
[420986265,1776857446044,-254.60549407,0.0001199,2]
[420986266,1776857446053,-254.60549407,0.0001199,2]
[420986267,1776857446063,-3482.0,0.00011996,2]
[420986268,1776857446072,-151.0,0.00011997,2]
[420986269,1776857446081,-300.0,0.00011999,2]
[420986270,1776857446091,-300.0,0.00011999,2]
[420986271,1776857446100,-300.0,0.00011999,2]
[420986272,1776857446110,-1101.2917872,0.00011999,3]
[420986273,1776857446119,-1101.2917872,0.00011999,3]
[420986274,1776857446128,-500.0,0.00011999,2]
[420986275,1776857446138,-236.0,0.00012,5]
[420986276,1776857446147,-200.0,0.00012,2]
[420986277,1776857446156,-27294.15531825,0.00012,2]
[420986278,1776857446168,-740.6657249,0.00012,2]
[420986279,1776857446264,-439.13846193,0.00012,2]
[420986280,1776857446321,-18770.85440137,0.00012,2]
[420986290,1776857446717,-692.85402314,0.00011481,2]
[420986291,1776857446831,-1337.68772155,0.00011481,2]
[420986292,1776857446840,-1964.86281457,0.00012,2]
[420986293,1776857446852,-867.40284662,0.00012,2]
[420986294,1776857446864,-544.08869123,0.00012,2]
[420986309,1776858568487,1327.0,0.000165,30]
[420986313,1776858632064,-592.58463347,9.534e-05,2]
[420986314,1776858632116,-1378.17418521,9.534e-05,2]
[420986315,1776858632223,-529.24118132,9.534e-05,2]
[420986316,1776858632233,-500.0,9.613e-05,2]
[420986317,1776858632242,-493.35795782,9.624e-05,2]
[420986318,1776858632255,-6206.64204218,9.624e-05,2]
[420986319,1776858632265,-274.0,9.624e-05,2]
[420986320,1776858632274,-300.0,9.632e-05,2]
[420986321,1776858632284,-500.0,9.633e-05,2]
[420986322,1776858632293,-500.0,9.633e-05,2]
[420986323,1776858632303,-500.0,9.633e-05,2]
[420986324,1776858632312,-500.0,9.633e-05,2]
[420986325,1776858632321,-500.0,9.633e-05,2]
[420986326,1776858632331,-500.0,9.633e-05,2]
[420986327,1776858632340,-500.0,9.633e-05,2]
[420986328,1776858632349,-500.0,9.633e-05,2]
[420986329,1776858632359,-351.3758644,9.633e-05,2]
[420986330,1776858632368,-500.0,9.633e-05,2]
[420986331,1776858632377,-500.0,9.633e-05,2]
[420986332,1776858632386,-500.0,9.633e-05,2]
[420986333,1776858632396,-500.0,9.633e-05,2]
[420986334,1776858632405,-500.0,9.633e-05,2]
[420986335,1776858632415,-500.0,9.633e-05,2]
[420986336,1776858632425,-500.0,9.633e-05,2]
[420986337,1776858632434,-500.0,9.633e-05,2]
[420986338,1776858632443,-500.0,9.633e-05,2]
[420986339,1776858632452,-489.03457049,9.633e-05,2]
[420986343,1776858638240,-10.96542951,9.633e-05,2]
[420986344,1776858638250,-500.0,9.633e-05,2]
[420986345,1776858638260,-71.61259085,9.633e-05,2]
[420986346,1776858638294,-428.38740915,9.633e-05,2]
[420986347,1776858638303,-500.0,9.633e-05,2]
[420986348,1776858638313,-64.95411426,9.633e-05,2]
[420986349,1776858638325,-435.04588574,9.633e-05,2]
[420986350,1776858638335,-500.0,9.633e-05,2]
[420986351,1776858638344,-500.0,9.633e-05,2]
[420986352,1776858638353,-500.0,9.633e-05,2]
[420986353,1776858638363,-500.0,9.633e-05,2]
[420986354,1776858638372,-500.0,9.633e-05,2]
[420986355,1776858638381,-500.0,9.633e-05,2]
[420986356,1776858638391,-364.95411426,9.633e-05,2]
[420986357,1776858638454,-135.04588574,9.633e-05,2]
[420986358,1776858638464,-500.0,9.633e-05,2]
[420986359,1776858638474,-190.22346112,9.633e-05,2]
[420986360,1776858638509,-309.77653888,9.633e-05,2]
[420986361,1776858638519,-500.0,9.633e-05,2]
[420986362,1776858638529,-500.0,9.633e-05,2]
[420986363,1776858638538,-500.0,9.633e-05,2]
[420986364,1776858638547,-500.0,9.633e-05,2]
[420986365,1776858638557,-500.0,9.633e-05,2]
[420986366,1776858638566,-500.0,9.633e-05,2]
[420986367,1776858638575,-500.0,9.633e-05,2]
[420986368,1776858638585,-500.0,9.633e-05,2]
[420986369,1776858638594,-385.13758644,9.633e-05,2]
[420986370,1776858638602,-500.0,9.633e-05,2]
[420986371,1776858638612,-500.0,9.633e-05,2]
[420986372,1776858638621,-500.0,9.633e-05,2]
[420986373,1776858638630,-500.0,9.633e-05,2]
[420986374,1776858638639,-500.0,9.633e-05,2]
[420986375,1776858638648,-500.0,9.633e-05,2]
[420986376,1776858638657,-211.83966872,9.633e-05,2]
[420986400,1776858640567,-288.16033128,9.633e-05,2]
[420986401,1776858640576,-219.0734544,9.633e-05,2]
[420986402,1776858640587,-150.0,9.633e-05,2]
[420986403,1776858640596,-249.0,9.633e-05,2]
[420986404,1776858640606,-260.0,9.863e-05,2]
[420986405,1776858640616,-231.07090458,0.0001,2]
[420986406,1776858640625,-171.66,0.00010073,2]
[420986407,1776858640635,-508.58529946,0.00010161,2]
[420986408,1776858640644,-500.0,0.00010352,2]
[420986409,1776858640654,-2348.68471997,0.00010471,2]
[420986410,1776858640681,-3189.73868244,0.00010471,2]
[420986411,1776858640696,-1084.68477612,0.00010471,2]
[420986412,1776858640728,-2852.19657638,0.00010471,2]
[420986419,1776858643259,-2279.80598597,0.00010471,2]
[420986420,1776858643314,-5642.70196642,0.00010471,2]
[420986421,1776858643326,-1909.66153725,0.00010471,2]
[420986429,1776858647447,-4384.0,0.00010471,2]
[420986430,1776858647462,-158408.73575545,0.00010471,2]
[420986431,1776858647472,-500.0,0.00010473,2]
[420986432,1776858647481,-2000.0,0.00010475,2]
[420986433,1776858647491,-160.0,0.00010523,2]
[420986434,1776858647500,-217.0,0.00010578,2]
[420986435,1776858647509,-420.0,0.00010595,2]
[420986436,1776858647519,-255.0,0.00010596,2]
[420986437,1776858647534,-150.0,0.000108,2]
[420986438,1776858647544,-150.0,0.000108,2]
[420986439,1776858647553,-150.23394626,0.000108,2]
[420986440,1776858647563,-150.0,0.000108,2]
[420986441,1776858647573,-150.0,0.000108,2]
[420986442,1776858647583,-150.0,0.000108,2]
[420986443,1776858647592,-150.37161379,0.000108,2]
[420986444,1776858647602,-150.0,0.000108,2]
[420986445,1776858647611,-257.26616216,0.000108,2]
[420986446,1776858647621,-150.48265423,0.000108,2]
[420986447,1776858647631,-150.0,0.000108,2]
[420986448,1776858647640,-150.0,0.000108,2]
[420986449,1776858647650,-150.0,0.000108,2]
[420986450,1776858647660,-578.20924308,0.0001086,2]
[420986451,1776858647669,-1428.38747117,0.0001086,2]
[420986452,1776858647679,-721.12765535,0.0001086,2]
[420986453,1776858647689,-174.61919141,0.0001086,2]
[420986454,1776858647699,-171.66,0.00010904,2]
[420986455,1776858647708,-3240.0,0.00010959,2]
[420986456,1776858647718,-155.0,0.00011068,2]
[420986457,1776858647728,-622.0,0.00011069,2]
[420986458,1776858647738,-416.0,0.00011069,2]
[420986459,1776858647748,-1887.013,0.00011069,2]
[420986460,1776858647758,-6031.0,0.00011069,2]
[420986461,1776858647768,-21872.51,0.00011098,2]
[420986462,1776858647778,-178.43473406,0.00011099,2]
[420986463,1776858647787,-437.0,0.00011138,2]
[420986464,1776858647796,-437.0,0.00011155,2]
[420986465,1776858647806,-437.0,0.00011171,2]
[420986466,1776858647816,-437.0,0.00011188,2]
[420986467,1776858647825,-437.0,0.00011192,2]
[420986468,1776858647835,-437.0,0.00011215,2]
[420986469,1776858647844,-179.02,0.0001124,2]
[420986470,1776858647855,-437.0,0.00011266,2]
[420986471,1776858647864,-2331.186,0.000113,2]
[420986472,1776858647874,-150.943,0.000113,2]
[420986473,1776858647883,-437.0,0.00011321,2]
[420986474,1776858647894,-437.0,0.00011324,2]
[420986475,1776858647903,-386.17296553,0.00011389,2]
[420986476,1776858647912,-1440.35,0.000114,2]
[420986477,1776858647922,-1481.23780761,0.00011408,2]
[420986478,1776858647932,-325.34100167,0.00011408,2]
[420986479,1776858647942,-500.0,0.00011452,2]
[420986480,1776858647952,-447.68,0.00011481,2]
[420986481,1776858647962,-1569.08,0.00011626,2]
[420986482,1776858647971,-587.0,0.00011655,2]
[420986483,1776858647981,-433.0,0.00011656,2]
[420986484,1776858647990,-483.6,0.00011685,2]
[420986485,1776858648000,-150.20448669,0.00011719,2]
[420986486,1776858648009,-171.66,0.00011736,2]
[420986487,1776858648020,-1353.69449646,0.0001176,2]
[420986488,1776858648029,-2000.0,0.00011784,2]
[420986489,1776858648038,-1351.0,0.000118,5]
[420986490,1776858648048,-5000.0,0.000119,2]
[420986491,1776858648057,-178.43473406,0.000119,2]
[420986492,1776858648066,-201.54379405,0.000119,2]
[420986493,1776858648076,-1149.83010706,0.000119,2]
[420986494,1776858648085,-1648.0345842,0.000119,2]
[420986495,1776858648094,-1198.13114002,0.000119,2]
[420986496,1776858648103,-2000.0,0.00011904,2]
[420986497,1776858648112,-200.0,0.00011904,2]
[420986498,1776858648122,-151.0,0.00011997,2]
[420986499,1776858648132,-264.50458982,0.00011999,2]
[420986500,1776858648141,-500.0,0.00011999,2]
[420986501,1776858648154,-300.0,0.00011999,2]
[420986502,1776858648164,-500.0,0.00011999,2]
[420986503,1776858648173,-341.16265518,0.00011999,2]
[420986504,1776858648183,-151.0,0.00012,5]
[420986505,1776858648192,-156.0,0.00012,5]
[420986506,1776858648202,-200.0,0.00012,2]
[420986507,1776858648212,-170313.08848112,0.00012,2]
[420986508,1776858648265,-35068.7024931,0.00012,2]
[420986509,1776858648276,-58200.0,0.00012,2]
[420986510,1776858648370,-1165.00275632,0.00012,2]
[420986511,1776858648397,-444.58999998,0.00012,2]
[420986535,1776859770022,-1864.949,9.343e-05,2]
[420986536,1776859770050,-150.943,9.343e-05,2]
[420986537,1776859770078,-1526.93068013,9.4e-05,2]
[420986538,1776859801166,1200.0,9.433e-05,2]
[420986545,1776859832193,-410.55372032,9.434e-05,2]
[420986546,1776859832204,-8222.14082767,9.434e-05,2]
[420986547,1776859832276,-970.31793558,9.434e-05,2]
[420986548,1776859832427,-440.1015256,9.434e-05,2]
[420986549,1776859832439,-1004.44627968,9.434e-05,2]
[420986570,1776859832830,-63140.26621115,9.434e-05,2]
[420986571,1776859832841,-274.19836101,9.456e-05,2]
[420986572,1776859832850,-500.0,9.456e-05,2]
[420986573,1776859832860,-150.0,9.532e-05,2]
[420986574,1776859832869,-300.0,9.532e-05,2]
[420986575,1776859832879,-500.0,9.533e-05,2]
[420986576,1776859832888,-500.0,9.533e-05,2]
[420986577,1776859832898,-500.0,9.533e-05,2]
[420986578,1776859832908,-500.0,9.533e-05,2]
[420986579,1776859832918,-488.51375864,9.533e-05,2]
[420986580,1776859832927,-500.0,9.533e-05,2]
[420986581,1776859832937,-500.0,9.533e-05,2]
[420986582,1776859832946,-500.0,9.533e-05,2]
[420986583,1776859832955,-500.0,9.533e-05,2]
[420986584,1776859832965,-500.0,9.533e-05,2]
[420986585,1776859832974,-500.0,9.533e-05,2]
[420986586,1776859832983,-500.0,9.533e-05,2]
[420986587,1776859832992,-500.0,9.533e-05,2]
[420986588,1776859833001,-500.0,9.533e-05,2]
[420986589,1776859833010,-500.0,9.533e-05,2]
[420986590,1776859833019,-500.0,9.533e-05,2]
[420986591,1776859833029,-500.0,9.533e-05,2]
[420986592,1776859833038,-500.0,9.533e-05,2]
[420986593,1776859833047,-500.0,9.533e-05,2]
[420986594,1776859833056,-500.0,9.533e-05,2]
[420986595,1776859833066,-500.0,9.533e-05,2]
[420986596,1776859833076,-500.0,9.533e-05,2]
[420986597,1776859833085,-500.0,9.533e-05,2]
[420986598,1776859833095,-500.0,9.533e-05,2]
[420986599,1776859833104,-500.0,9.533e-05,2]
[420986600,1776859833114,-500.0,9.533e-05,2]
[420986601,1776859833123,-370.94213216,9.533e-05,2]
[420986602,1776859833132,-500.0,9.533e-05,2]
[420986603,1776859833142,-500.0,9.533e-05,2]
[420986604,1776859833151,-500.0,9.533e-05,2]
[420986605,1776859833160,-500.0,9.533e-05,2]
[420986606,1776859833169,-500.0,9.533e-05,2]
[420986607,1776859833178,-500.0,9.533e-05,2]
[420986608,1776859833188,-500.0,9.533e-05,2]
[420986609,1776859833198,-500.0,9.533e-05,2]
[420986610,1776859833207,-500.0,9.533e-05,2]
[420986611,1776859833216,-500.0,9.533e-05,2]
[420986612,1776859833228,-500.0,9.533e-05,2]
[420986613,1776859833237,-500.0,9.533e-05,2]
[420986614,1776859833246,-500.0,9.533e-05,2]
[420986615,1776859833255,-500.0,9.533e-05,2]
[420986616,1776859833264,-500.0,9.533e-05,2]
[420986617,1776859833274,-500.0,9.533e-05,2]
[420986618,1776859833283,-500.0,9.533e-05,2]
[420986619,1776859833292,-500.0,9.533e-05,2]
[420986620,1776859833302,-500.0,9.533e-05,2]
[420986621,1776859833311,-250.0,9.533e-05,2]
[420986622,1776859833321,-502.69087961,9.73e-05,2]
[420986623,1776859833330,-260.0,9.863e-05,2]
[420986624,1776859833339,-1052.01629569,0.0001,2]
[420986625,1776859833349,-6786.32330519,0.0001,2]
[420986626,1776859833358,-15986.0,0.000101,2]
[420986627,1776859833367,-5529.0,0.000102,3]
[420986628,1776859833377,-1600.0,0.00010352,2]
[420986629,1776859833387,-250.0,0.00010359,2]
[420986630,1776859833395,-250.0,0.00010377,2]
[420986631,1776859833405,-5529.0,0.000104,5]
[420986632,1776859833414,-160.0,0.00010427,2]
[420986633,1776859833423,-255.0,0.00010485,2]
[420986634,1776859833432,-14883.53672305,0.000107,2]
[420986635,1776859833445,-609.8984744,0.000107,2]
[420986636,1776859833456,-250.7070206,0.000107,2]
[420986680,1776859840436,-522.9232407,0.000107,2]
[420986683,1776859840448,-301.92197159,0.000107,2]
[420986690,1776859840545,-4505.37866144,0.000107,2]
[420986691,1776859840598,-580.80823926,0.000107,2]
[420986692,1776859840917,-22016.68968734,0.000107,2]
[420986693,1776859840926,-6896.43085906,0.000107,2]
[420986694,1776859840939,-509.65562623,0.000107,2]
[420986695,1776859840970,-7380.07437201,0.000107,2]